fUSD/lending_fUSD_20250814
["ID","MTS","AMOUNT","RATE_DAILY","PERIOD"]
[379195315,1755183039832,-4061.76655481,0.0002694,2]
[379195316,1755183039842,-915.56044032,0.00026941,2]
[379195317,1755183039853,-151.97041497,0.00026947,2]
[379195318,1755183039862,-150.0,0.00026952,2]
[379195319,1755183039873,-150.0,0.00026952,2]
[379195320,1755183039883,-150.0,0.00026953,2]
[379195321,1755183039892,-150.0,0.00026954,2]
[379195322,1755183039902,-150.0,0.00026956,2]
[379195323,1755183039912,-150.0,0.00026969,2]
[379195324,1755183039922,-150.0,0.00026973,2]
[379195326,1755183039932,-244.88642245,0.00026977,2]
[379195327,1755183039941,-40646.692278,0.0002698,2]
[379195328,1755183039951,-173.18,0.00026986,2]
[379195330,1755183039960,-165.73,0.00026986,2]
[379195331,1755183039970,-1076.34,0.00026986,2]
[379195332,1755183039980,-1060.77417891,0.0002699,2]
[379195333,1755183039989,-150.0,0.0002699,2]
[379195334,1755183040000,-121940.076834,0.0002699,2]
[379195335,1755183040010,-61797.9117652,0.0002699,2]
[379195336,1755183040020,-150.0,0.00026995,2]
[379195337,1755183040030,-1000.0,0.00026999,2]
[379195338,1755183040039,-250000.0,0.00027,2]
[379195339,1755183040049,-215.0,0.00027,7]
[379195340,1755183040058,-9137.396,0.00027,15]
[379195341,1755183040068,-469.359,0.00027,15]
[379195342,1755183040078,-500.0,0.00027,2]
[379195343,1755183040089,-578.53,0.00027,120]
[379195344,1755183040099,-150.0,0.00027005,2]
[379195345,1755183040110,-4061.76655481,0.00027011,2]
[379195347,1755183040121,-915.56044032,0.00027011,2]
[379195349,1755183040132,-8129.33845559,0.00027025,2]
[379195351,1755183040141,-150.0,0.00027032,2]
[379195353,1755183040152,-600.0,0.00027035,2]
[379195354,1755183040162,-151.0,0.00027035,2]
[379195355,1755183040172,-158.96173231,0.00027035,2]
[379195356,1755183040182,-151.0,0.00027035,2]
[379195357,1755183040193,-150.0,0.00027038,2]
[379195358,1755183040203,-150.0,0.00027055,2]
[379195359,1755183040213,-244.88642245,0.00027069,2]
[379195360,1755183040223,-150.0,0.0002707,2]
[379195361,1755183040232,-150.0,0.00027074,2]
[379195362,1755183040242,-4061.76655481,0.00027081,2]
[379195363,1755183040252,-915.56044032,0.00027082,2]
[379195364,1755183040261,-6866.43464058,0.0002709,2]
[379195365,1755183040271,-150.0,0.00027115,2]
[379195366,1755183040283,-150.0,0.00027117,2]
[379195367,1755183040292,-7000.0,0.0002712,2]
[379195368,1755183040302,-150.0,0.00027132,2]
[379195369,1755183040312,-150.0,0.00027137,2]
[379195370,1755183040321,-150.0,0.0002714,2]
[379195371,1755183040331,-150.0,0.00027147,2]
[379195372,1755183040346,-8129.33845559,0.00027151,2]
[379195373,1755183040357,-4061.76655481,0.00027152,2]
[379195374,1755183040367,-915.56044032,0.00027152,2]
[379195375,1755183040378,-244.88642245,0.0002716,2]
[379195376,1755183040387,-150.0,0.00027161,2]
[379195377,1755183040396,-6866.43464058,0.0002719,2]
[379195378,1755183040406,-1000.0,0.00027194,2]
[379195379,1755183040419,-314.17479164,0.00027197,2]
[379195380,1755183040429,-9037.64,0.000272,2]
[379195381,1755183040439,-150.0,0.000272,2]
[379195382,1755183040449,-8129.33845559,0.00027203,2]
[379195383,1755183040458,-150.0,0.00027205,2]
[379195384,1755183040467,-150.0,0.00027209,2]
[379195385,1755183040476,-150.0,0.00027214,2]
[379195386,1755183040486,-4061.76655481,0.00027222,2]
[379195387,1755183040495,-915.56044032,0.00027223,2]
[379195388,1755183040504,-447.85968092,0.00027237,2]
[379195389,1755183040513,-1152.0,0.00027241,2]
[379195390,1755183040523,-244.88642245,0.00027251,2]
[379195391,1755183040533,-504.0,0.00027256,5]
[379195392,1755183040542,-6866.43464058,0.00027267,2]
[379195393,1755183040551,-150.0,0.00027274,2]
[379195394,1755183040561,-150.0,0.00027276,2]
[379195396,1755183040571,-8129.33845559,0.00027277,2]
[379195397,1755183040580,-150.0,0.00027282,2]
[379195398,1755183040590,-316.89,0.00027285,2]
[379195399,1755183040599,-13732.8692812,0.00027287,2]
[379195400,1755183040608,-150.0,0.00027287,2]
[379195401,1755183040618,-8129.33845559,0.0002729,2]
[379195402,1755183040628,-4061.76655481,0.00027293,2]
[379195403,1755183040642,-915.56044032,0.00027293,2]
[379195404,1755183040652,-10000.0,0.00027297,2]
[379195405,1755183040662,-5000.0,0.00027297,2]
[379195406,1755183040672,-1280.41314939,0.00027297,2]
[379195407,1755183040682,-492.2,0.000273,2]
[379195408,1755183040691,-500.0,0.000273,2]
[379195409,1755183040700,-314.1747916,0.00027305,2]
[379195410,1755183040710,-150.0,0.00027311,2]
[379195411,1755183040719,-150.0,0.00027318,2]
[379195412,1755183040729,-150.0,0.00027325,2]
[379195413,1755183040739,-150.0,0.0002733,2]
[379195414,1755183040748,-150.0,0.00027332,2]
[379195415,1755183040757,-150.0,0.0002734,2]
[379195416,1755183040767,-500.0,0.00027342,2]
[379195417,1755183040776,-244.88642245,0.00027343,2]
[379195418,1755183040786,-6866.43464058,0.00027352,2]
[379195419,1755183040795,-179.72092268,0.00027356,2]
[379195420,1755183040805,-150.0,0.00027356,2]
[379195421,1755183040814,-150.0,0.00027356,2]
[379195422,1755183040824,-8129.33845559,0.00027357,2]
[379195423,1755183040833,-41198.6078435,0.00027357,2]
[379195424,1755183040843,-150.0,0.00027362,2]
[379195425,1755183040852,-6866.43464058,0.00027363,2]
[379195426,1755183040862,-2564.06071232,0.00027363,2]
[379195427,1755183041040,-1192.04934,0.00027363,2]
[379195428,1755183041076,-305.65650249,0.00027363,2]
[379195429,1755183041085,-915.56044032,0.00027364,2]
[379195430,1755183041096,-40573.5360572,0.00027366,2]
[379195431,1755183041107,-5511.0,0.00027366,2]
[379195432,1755183041120,-14370.9159376,0.00027366,2]
[379195433,1755183041930,-150.0,0.00025937,2]
[379195434,1755183041940,-150.0,0.00026321,2]
[379195435,1755183041950,-2083.46048826,0.00027366,2]
[379195436,1755183041961,-40457.60712594,0.00027366,2]
[379195437,1755183041971,-781.0,0.00027367,120]
[379195438,1755183041980,-150.0,0.00027371,2]
[379195439,1755183041990,-501.34567089,0.00027373,2]
[379195440,1755183041999,-500.0,0.00027373,2]
[379195441,1755183042009,-500.0,0.00027373,2]
[379195442,1755183042018,-500.0,0.00027373,2]
[379195443,1755183042027,-500.0,0.00027373,2]
[379195444,1755183042037,-506.67658515,0.00027373,2]
[379195445,1755183042046,-500.0,0.00027373,2]
[379195446,1755183042055,-460.73578863,0.00027373,2]
[379195447,1755183042065,-500.0,0.00027373,2]
[379195448,1755183042075,-254787.09022008,0.00027376,2]
[379195449,1755183042084,-781.0,0.00027377,120]
[379195450,1755183042094,-1280.41314937,0.00027379,2]
[379195451,1755183042403,-150.0,0.00027384,2]
[379195452,1755183042414,-179.72092268,0.00027387,2]
[379195453,1755183042424,-781.0,0.00027387,120]
[379195454,1755183042434,-3484.0,0.00027388,2]
[379195455,1755183042444,-150.0,0.0002739,2]
[379195456,1755183042453,-150.0,0.00027395,2]
[379195457,1755183042467,-150.0,0.00027396,2]
[379195458,1755183042477,-498.5842575,0.00027396,2]
[379195459,1755183042486,-691.6587683,0.00027396,2]
[379195460,1755183042496,-6201.5910505,0.00027396,2]
[379195461,1755183042506,-300.0,0.00027396,10]
[379195462,1755183042515,-156.73643347,0.00027397,2]
[379195463,1755183042525,-400.0,0.00027397,2]
[379195464,1755183042535,-400.0,0.00027397,2]
[379195465,1755183042544,-400.0,0.00027397,2]
[379195466,1755183042554,-400.0,0.00027397,2]
[379195467,1755183042564,-400.0,0.00027397,2]
[379195468,1755183042574,-400.0,0.00027397,2]
[379195469,1755183042583,-400.0,0.00027397,2]
[379195470,1755183042593,-151.0,0.00027397,7]
[379195471,1755183042603,-265.27929,0.00027397,7]
[379195472,1755183042612,-265.27929,0.00027397,7]
[379195473,1755183042623,-265.27929,0.00027397,7]
[379195474,1755183042633,-151.0,0.00027397,7]
[379195475,1755183042642,-400.0,0.00027397,2]
[379195476,1755183042652,-515.91966059,0.00027397,2]
[379195477,1755183042662,-400.0,0.00027397,2]
[379195478,1755183042672,-400.0,0.00027397,2]
[379195479,1755183042682,-265.27929,0.00027397,7]
[379195480,1755183042691,-265.27929,0.00027397,7]
[379195481,1755183042701,-265.27929,0.00027397,7]
[379195482,1755183042710,-886.81691,0.00027397,7]
[379195483,1755183042720,-886.81691,0.00027397,7]
[379195484,1755183042730,-1374.248293,0.00027397,7]
[379195485,1755183042739,-886.81691,0.00027397,7]
[379195486,1755183042748,-886.81691,0.00027397,7]
[379195487,1755183042758,-1374.248293,0.00027397,7]
[379195488,1755183042768,-151.0,0.00027397,7]
[379195489,1755183042779,-151.0,0.00027397,7]
[379195490,1755183042788,-400.0,0.00027397,2]
[379195491,1755183042798,-400.0,0.00027397,2]
[379195492,1755183042808,-400.0,0.00027397,2]
[379195493,1755183042818,-1087.78,0.00027397,2]
[379195494,1755183042827,-234.800075,0.00027397,7]
[379195495,1755183042837,-234.800075,0.00027397,7]
[379195496,1755183042847,-543.73974475,0.00027397,2]
[379195497,1755183042857,-400.0,0.00027397,2]
[379195499,1755183042866,-779.39,0.00027397,2]
[379195501,1755183042877,-234.800075,0.00027397,7]
[379195504,1755183042887,-234.800075,0.00027397,7]
[379195505,1755183042896,-400.0,0.00027397,2]
[379195506,1755183042906,-400.0,0.00027397,2]
[379195507,1755183042915,-400.0,0.00027397,2]
[379195508,1755183042925,-400.0,0.00027397,2]
[379195509,1755183042934,-400.0,0.00027397,2]
[379195510,1755183042944,-400.0,0.00027397,2]
[379195511,1755183042954,-400.0,0.00027397,2]
[379195512,1755183042963,-400.0,0.00027397,2]
[379195513,1755183042973,-400.0,0.00027397,2]
[379195516,1755183042983,-2087.49,0.00027397,2]
[379195518,1755183042992,-400.0,0.00027397,2]
[379195519,1755183043002,-400.0,0.00027397,2]
[379195520,1755183043013,-569.95,0.00027397,2]
[379195521,1755183043023,-400.0,0.00027397,2]
[379195522,1755183043032,-400.0,0.00027397,2]
[379195523,1755183043042,-400.0,0.00027397,2]
[379195524,1755183043052,-400.0,0.00027397,2]
[379195525,1755183043062,-400.0,0.00027397,2]
[379195526,1755183043072,-400.0,0.00027397,2]
[379195527,1755183043081,-400.0,0.00027397,2]
[379195528,1755183043091,-400.0,0.00027397,2]
[379195529,1755183043100,-400.0,0.00027397,2]
[379195530,1755183043110,-500.0,0.00027397,2]
[379195531,1755183043120,-1025.32,0.00027397,2]
[379195532,1755183043130,-400.0,0.00027397,2]
[379195533,1755183043139,-186.25712,0.00027397,7]
[379195534,1755183043149,-278.753097,0.00027397,7]
[379195535,1755183043159,-400.0,0.00027397,2]
[379195536,1755183043168,-186.25712,0.00027397,7]
[379195537,1755183043178,-186.25712,0.00027397,7]
[379195538,1755183043188,-400.0,0.00027397,2]
[379195539,1755183043198,-1705.64725,0.00027397,7]
[379195540,1755183043208,-1705.64725,0.00027397,7]
[379195541,1755183043217,-400.0,0.00027397,2]
[379195542,1755183043227,-278.753097,0.00027397,7]
[379195543,1755183043237,-186.25712,0.00027397,7]
[379195544,1755183043246,-186.25712,0.00027397,7]
[379195545,1755183043256,-400.0,0.00027397,2]
[379195546,1755183043266,-1705.64725,0.00027397,7]
[379195547,1755183043275,-186.25712,0.00027397,7]
[379195548,1755183043285,-1705.64725,0.00027397,7]
[379195549,1755183043295,-400.0,0.00027397,2]
[379195550,1755183043304,-400.0,0.00027397,2]
[379195551,1755183043315,-151.0,0.00027397,7]
[379195552,1755183043325,-151.0,0.00027397,7]
[379195553,1755183043339,-400.0,0.00027397,2]
[379195554,1755183043348,-401.37302665,0.00027397,2]
[379195555,1755183043358,-151.0,0.00027397,7]
[379195556,1755183043370,-151.0,0.00027397,7]
[379195557,1755183043381,-1110.93,0.00027397,2]
[379195558,1755183043391,-400.0,0.00027397,2]
[379195559,1755183043401,-400.0,0.00027397,2]
[379195560,1755183043412,-400.0,0.00027397,2]
[379195561,1755183043423,-400.0,0.00027397,2]
[379195562,1755183043433,-1053.82,0.00027397,2]
[379195565,1755183043443,-400.0,0.00027397,2]
[379195568,1755183043453,-400.0,0.00027397,2]
[379195571,1755183043464,-400.0,0.00027397,2]
[379195573,1755183043474,-400.0,0.00027397,2]
[379195575,1755183043484,-1228.7,0.00027397,2]
[379195577,1755183043493,-400.0,0.00027397,2]
[379195579,1755183043503,-400.0,0.00027397,2]
[379195581,1755183043513,-683.85,0.00027397,2]
[379195583,1755183043522,-400.0,0.00027397,2]
[379195584,1755183043532,-400.0,0.00027397,2]
[379195585,1755183043542,-400.0,0.00027397,2]
[379195586,1755183043552,-400.0,0.00027397,2]
[379195587,1755183043561,-517.444721,0.00027397,7]
[379195588,1755183043571,-400.0,0.00027397,2]
[379195589,1755183043581,-517.444721,0.00027397,7]
[379195590,1755183043591,-400.0,0.00027397,2]
[379195591,1755183043601,-400.0,0.00027397,2]
[379195592,1755183043611,-400.0,0.00027397,2]
[379195593,1755183043622,-697.19,0.00027397,2]
[379195594,1755183043633,-400.0,0.00027397,2]
[379195595,1755183043643,-400.0,0.00027397,2]
[379195596,1755183043652,-400.0,0.00027397,2]
[379195597,1755183043663,-400.0,0.00027397,2]
[379195598,1755183043674,-849.55,0.00027397,2]
[379195599,1755183043684,-400.0,0.00027397,2]
[379195600,1755183043694,-400.0,0.00027397,2]
[379195601,1755183043704,-707.84,0.00027397,2]
[379195602,1755183043714,-400.0,0.00027397,2]
[379195604,1755183043723,-506.93,0.00027397,2]
[379195606,1755183043734,-400.0,0.00027397,2]
[379195608,1755183043744,-883.48,0.00027397,2]
[379195609,1755183043755,-400.0,0.00027397,2]
[379195611,1755183043764,-400.0,0.00027397,2]
[379195612,1755183043774,-400.0,0.00027397,2]
[379195613,1755183043784,-628.4,0.00027397,2]
[379195614,1755183043793,-400.0,0.00027397,2]
[379195615,1755183043803,-400.0,0.00027397,2]
[379195616,1755183043812,-500.0,0.00027397,2]
[379195617,1755183043822,-553.89617209,0.00027397,2]
[379195618,1755183043832,-200.0,0.00027397,2]
[379195619,1755183043841,-400.0,0.00027397,2]
[379195620,1755183043851,-1210.76,0.00027397,2]
[379195621,1755183043860,-400.0,0.00027397,2]
[379195622,1755183043872,-400.0,0.00027397,2]
[379195623,1755183043882,-400.0,0.00027397,2]
[379195624,1755183043892,-1496.83,0.00027397,2]
[379195625,1755183043902,-400.0,0.00027397,2]
[379195626,1755183043912,-400.0,0.00027397,2]
[379195627,1755183043922,-841.04,0.00027397,2]
[379195628,1755183043932,-400.0,0.00027397,2]
[379195629,1755183043942,-400.0,0.00027397,2]
[379195630,1755183043951,-400.0,0.00027397,2]
[379195631,1755183043961,-400.0,0.00027397,2]
[379195632,1755183043971,-874.5,0.00027397,2]
[379195633,1755183043981,-400.0,0.00027397,2]
[379195634,1755183043992,-906.58,0.00027397,2]
[379195635,1755183044003,-400.0,0.00027397,2]
[379195636,1755183044014,-400.0,0.00027397,2]
[379195637,1755183044025,-400.0,0.00027397,2]
[379195638,1755183044036,-1067.02,0.00027397,2]
[379195639,1755183044047,-400.0,0.00027397,2]
[379195640,1755183044057,-400.0,0.00027397,2]
[379195641,1755183044068,-400.0,0.00027397,2]
[379195642,1755183044079,-400.0,0.00027397,2]
[379195643,1755183044088,-1005.36,0.00027397,2]
[379195644,1755183044098,-1022.74,0.00027397,2]
[379195645,1755183044108,-400.0,0.00027397,2]
[379195646,1755183044120,-400.0,0.00027397,2]
[379195647,1755183044129,-561.64,0.00027397,2]
[379195648,1755183044140,-654.15,0.00027397,2]
[379195649,1755183044150,-400.0,0.00027397,2]
[379195650,1755183044160,-400.0,0.00027397,2]
[379195651,1755183044171,-400.0,0.00027397,2]
[379195652,1755183044181,-400.0,0.00027397,2]
[379195653,1755183044191,-400.0,0.00027397,2]
[379195654,1755183044200,-400.0,0.00027397,2]
[379195655,1755183044210,-300.0,0.00027397,2]
[379195656,1755183044220,-460.74,0.00027397,2]
[379195657,1755183044230,-400.0,0.00027397,2]
[379195658,1755183044240,-2006.1,0.00027397,2]
[379195659,1755183044249,-400.0,0.00027397,2]
[379195660,1755183044259,-1373.04,0.00027397,2]
[379195661,1755183044270,-1058.9,0.00027397,2]
[379195662,1755183044279,-400.0,0.00027397,2]
[379195663,1755183044289,-1470.55,0.00027397,2]
[379195664,1755183044299,-400.0,0.00027397,2]
[379195665,1755183044309,-400.0,0.00027397,2]
[379195666,1755183044318,-400.0,0.00027397,2]
[379195667,1755183044328,-474.76,0.00027397,2]
[379195668,1755183044341,-400.0,0.00027397,2]
[379195669,1755183044351,-453.14,0.00027397,2]
[379195670,1755183044361,-400.0,0.00027397,2]
[379195671,1755183044374,-1875.37,0.00027397,2]
[379195672,1755183044384,-1509.58,0.00027397,2]
[379195673,1755183044395,-938.16,0.00027397,2]
[379195674,1755183044405,-487.77,0.00027397,2]
[379195675,1755183044418,-400.0,0.00027397,2]
[379195676,1755183044428,-400.0,0.00027397,2]
[379195677,1755183044438,-2000.0,0.00027397,30]
[379195678,1755183044447,-400.0,0.00027397,2]
[379195679,1755183044457,-2121.23,0.00027397,2]
[379195680,1755183044467,-380.84188387,0.00027397,2]
[379195681,1755183044476,-400.0,0.00027397,2]
[379195682,1755183044487,-1228.74,0.00027397,2]
[379195683,1755183044496,-500.0,0.00027397,2]
[379195684,1755183044506,-500.0,0.00027397,2]
[379195685,1755183044516,-500.0,0.00027397,2]
[379195686,1755183044525,-400.0,0.00027397,2]
[379195687,1755183044535,-500.0,0.00027397,2]
[379195688,1755183044546,-500.0,0.00027397,2]
[379195689,1755183044556,-500.0,0.00027397,2]
[379195690,1755183044565,-400.0,0.00027397,2]
[379195691,1755183044576,-516.76,0.00027397,2]
[379195692,1755183044586,-500.0,0.00027397,2]
[379195693,1755183044595,-1000.0,0.00027397,2]
[379195694,1755183044605,-963.32,0.00027397,2]
[379195695,1755183044615,-400.0,0.00027397,2]
[379195696,1755183044626,-703.92,0.00027397,2]
[379195697,1755183044636,-400.0,0.00027397,2]
[379195698,1755183044646,-400.0,0.00027397,2]
[379195699,1755183044657,-828.72,0.00027397,2]
[379195700,1755183044667,-376.84143982,0.00027397,2]
[379195701,1755183044677,-400.0,0.00027397,2]
[379195702,1755183044686,-400.0,0.00027397,2]
[379195703,1755183044696,-1445.14,0.00027397,2]
[379195704,1755183044706,-400.0,0.00027397,2]
[379195705,1755183044716,-400.0,0.00027397,2]
[379195706,1755183044726,-400.0,0.00027397,2]
[379195707,1755183044735,-400.0,0.00027397,2]
[379195708,1755183044746,-633.52,0.00027397,2]
[379195709,1755183044756,-400.0,0.00027397,2]
[379195710,1755183044767,-400.0,0.00027397,2]
[379195711,1755183044777,-400.0,0.00027397,2]
[379195712,1755183044786,-1001.42,0.00027397,2]
[379195713,1755183044796,-1050.78,0.00027397,2]
[379195714,1755183044805,-400.0,0.00027397,2]
[379195715,1755183044815,-2003.9,0.00027397,2]
[379195716,1755183044825,-1575.66,0.00027397,2]
[379195717,1755183044835,-730.126068,0.00027397,7]
[379195718,1755183044844,-400.0,0.00027397,2]
[379195719,1755183044854,-512.0,0.00027397,2]
[379195720,1755183044864,-400.0,0.00027397,2]
[379195721,1755183044876,-1312.48,0.00027397,2]
[379195722,1755183044885,-730.126068,0.00027397,7]
[379195723,1755183044896,-400.0,0.00027397,2]
[379195724,1755183044906,-503.56,0.00027397,2]
[379195725,1755183044915,-400.0,0.00027397,2]
[379195726,1755183044925,-420.16,0.00027397,2]
[379195727,1755183044935,-1708.72,0.00027397,2]
[379195728,1755183044946,-1896.57,0.00027397,2]
[379195729,1755183044956,-686.64,0.00027397,2]
[379195730,1755183044966,-400.0,0.00027397,2]
[379195731,1755183044976,-562.83,0.00027397,2]
[379195732,1755183044986,-499.88,0.00027397,2]
[379195733,1755183044996,-463.78,0.00027397,2]
[379195734,1755183045006,-400.0,0.00027397,2]
[379195735,1755183045016,-400.0,0.00027397,2]
[379195736,1755183045026,-1621.15,0.00027397,2]
[379195737,1755183045036,-496.51,0.00027397,2]
[379195738,1755183045046,-400.0,0.00027397,2]
[379195739,1755183045055,-400.0,0.00027397,2]
[379195740,1755183045065,-542.46,0.00027397,2]
[379195741,1755183045076,-2414.61,0.00027397,2]
[379195742,1755183045086,-1230.44,0.00027397,2]
[379195743,1755183045095,-400.0,0.00027397,2]
[379195744,1755183045105,-400.0,0.00027397,2]
[379195745,1755183045114,-893.29,0.00027397,2]
[379195746,1755183045126,-1000.77,0.00027397,2]
[379195747,1755183045135,-400.0,0.00027397,2]
[379195748,1755183045145,-400.0,0.00027397,2]
[379195749,1755183045155,-400.0,0.00027397,2]
[379195750,1755183045165,-400.0,0.00027397,2]
[379195751,1755183045174,-500.0,0.00027397,2]
[379195752,1755183045184,-500.0,0.00027397,2]
[379195753,1755183045194,-500.0,0.00027397,2]
[379195754,1755183045204,-500.0,0.00027397,2]
[379195755,1755183045214,-514.62,0.00027397,2]
[379195756,1755183045224,-758.87,0.00027397,2]
[379195757,1755183045234,-400.0,0.00027397,2]
[379195758,1755183045244,-400.0,0.00027397,2]
[379195759,1755183045254,-400.0,0.00027397,2]
[379195760,1755183045264,-400.0,0.00027397,2]
[379195761,1755183045274,-953.9,0.00027397,2]
[379195762,1755183045283,-400.0,0.00027397,2]
[379195763,1755183045293,-1050.08,0.00027397,2]
[379195764,1755183045303,-400.0,0.00027397,2]
[379195765,1755183045313,-1030.61,0.00027397,2]
[379195766,1755183045323,-400.0,0.00027397,2]
[379195767,1755183045335,-400.0,0.00027397,2]
[379195768,1755183045345,-400.0,0.00027397,2]
[379195769,1755183045355,-400.0,0.00027397,2]
[379195770,1755183045365,-400.0,0.00027397,2]
[379195771,1755183045377,-1376.21,0.00027397,2]
[379195772,1755183045386,-400.0,0.00027397,2]
[379195773,1755183045396,-1174.51,0.00027397,2]
[379195774,1755183045405,-1544.6,0.00027397,2]
[379195775,1755183045416,-400.0,0.00027397,2]
[379195776,1755183045426,-400.0,0.00027397,2]
[379195777,1755183045436,-544.89,0.00027397,2]
[379195778,1755183045445,-400.0,0.00027397,2]
[379195779,1755183045455,-400.0,0.00027397,2]
[379195780,1755183045465,-400.0,0.00027397,2]
[379195781,1755183045475,-476.97666555,0.00027397,2]
[379195782,1755183045485,-400.0,0.00027397,2]
[379195783,1755183045495,-400.0,0.00027397,2]
[379195784,1755183045504,-500.0,0.00027397,2]
[379195785,1755183045513,-500.0,0.00027397,2]
[379195786,1755183045523,-500.0,0.00027397,2]
[379195787,1755183045533,-400.0,0.00027397,2]
[379195788,1755183045543,-500.0,0.00027397,2]
[379195789,1755183045553,-400.0,0.00027397,2]
[379195790,1755183045564,-500.0,0.00027397,2]
[379195791,1755183045574,-500.0,0.00027397,2]
[379195792,1755183045585,-500.0,0.00027397,2]
[379195793,1755183045595,-402.56876129,0.00027397,2]
[379195794,1755183045605,-500.0,0.00027397,2]
[379195795,1755183045615,-500.0,0.00027397,2]
[379195796,1755183045627,-400.0,0.00027397,2]
[379195797,1755183045637,-500.0,0.00027397,2]
[379195798,1755183045647,-500.0,0.00027397,2]
[379195799,1755183045658,-400.0,0.00027397,2]
[379195800,1755183045668,-500.0,0.00027397,2]
[379195801,1755183045678,-500.0,0.00027397,2]
[379195802,1755183045689,-309.33817307,0.00027397,2]
[379195803,1755183045698,-400.0,0.00027397,2]
[379195804,1755183045709,-1185.72,0.00027397,2]
[379195805,1755183045719,-1785.33,0.00027397,2]
[379195806,1755183045729,-836.84,0.00027397,2]
[379195807,1755183045739,-1029.05,0.00027397,2]
[379195808,1755183045749,-675.44,0.00027397,2]
[379195809,1755183045759,-400.0,0.00027397,2]
[379195810,1755183045769,-400.0,0.00027397,2]
[379195811,1755183045779,-400.0,0.00027397,2]
[379195812,1755183045789,-400.0,0.00027397,2]
[379195813,1755183045799,-400.0,0.00027397,2]
[379195814,1755183045809,-400.0,0.00027397,2]
[379195815,1755183045819,-418.15,0.00027397,2]
[379195816,1755183045830,-5890.81,0.00027397,2]
[379195817,1755183045840,-163.170839,0.00027397,7]
[379195818,1755183045850,-678.49,0.00027397,2]
[379195819,1755183045860,-2316.11,0.00027397,2]
[379195820,1755183045870,-151.0,0.00027397,7]
[379195821,1755183045880,-151.0,0.00027397,7]
[379195822,1755183045891,-3029.28,0.00027397,2]
[379195823,1755183045901,-2295.98,0.00027397,2]
[379195824,1755183045911,-687.66,0.00027397,2]
[379195825,1755183045921,-400.0,0.00027397,2]
[379195826,1755183045931,-163.170839,0.00027397,7]
[379195827,1755183045941,-1177.44,0.00027397,2]
[379195828,1755183045951,-401.28460557,0.00027397,2]
[379195829,1755183045960,-400.0,0.00027397,2]
[379195830,1755183045970,-151.0,0.00027397,7]
[379195831,1755183045979,-614.6,0.00027397,2]
[379195832,1755183045990,-151.0,0.00027397,7]
[379195833,1755183045999,-400.0,0.00027397,2]
[379195834,1755183046008,-400.0,0.00027397,2]
[379195835,1755183046017,-219.24330215,0.00027397,2]
[379195836,1755183046027,-3908.7,0.00027397,2]
[379195837,1755183046036,-1395.15,0.00027397,2]
[379195838,1755183046046,-786.32,0.00027397,2]
[379195839,1755183046056,-400.0,0.00027397,2]
[379195840,1755183046066,-903.91,0.00027397,2]
[379195841,1755183046076,-1032.58,0.00027397,2]
[379195842,1755183046086,-2445.31,0.00027397,2]
[379195843,1755183046095,-1442.17,0.00027397,2]
[379195844,1755183046105,-828.01,0.00027397,2]